bitfinex/quotes_SOLUSD_20251007
["timestamp","ask_amount","ask_price","bid_price","bid_amount"]
[1759859644053,8.16084395,223.31,223.3,0.2]
[1759859644458,12.63892374,223.31,223.3,0.2]
[1759859644649,13.31892374,223.31,223.3,0.2]
[1759859644863,12.63892374,223.31,223.3,0.2]
[1759859646055,8.16084395,223.31,223.3,0.2]
[1759859647058,3.29910498,223.31,223.3,0.2]
[1759859647353,3.29910498,223.31,223.3,0.87]
[1759859647857,8.16084395,223.31,223.3,0.2]
[1759859648861,8.16662512,223.31,223.3,0.2]
[1759859650064,13.32470491,223.31,223.3,0.2]
[1759859650686,12.64470491,223.31,223.3,0.2]
[1759859651358,13.32470491,223.31,223.3,0.2]
[1759859654158,3.30769051,223.31,223.3,0.87]
[1759859654356,8.16942948,223.31,223.3,0.2]
[1759859654657,8.17117654,223.31,223.3,0.2]
[1759859655180,12.64925633,223.31,223.3,0.2]
[1759859655580,13.32925633,223.31,223.3,0.2]
[1759859656273,12.64925633,223.31,223.3,0.2]
[1759859657370,7.78751736,223.31,223.3,0.2]
[1759859657565,12.64925633,223.31,223.3,0.2]
[1759859657970,44.86925633,223.31,223.3,0.2]
[1759859658166,12.64925633,223.31,223.3,0.2]
[1759859658374,44.84925633,223.31,223.3,0.2]
[1759859659278,39.98751736,223.31,223.3,0.2]
[1759859659584,44.84925633,223.31,223.3,0.2]
[1759859659982,40.37117654,223.31,223.3,0.87]
[1759859660582,40.37117654,223.31,223.3,0.2]
[1759859661285,37.48645411,223.31,223.3,0.87]
[1759859661585,37.48645411,223.31,223.3,0.2]
[1759859661887,41.9645339,223.31,223.3,0.2]
[1759859662273,44.95321397,223.31,223.3,0.2]
[1759859662477,41.6437764,223.31,223.3,0.2]
[1759859663182,44.96659922,223.31,223.3,0.2]
[1759859663687,41.6437764,223.31,223.3,0.2]
[1759859664187,44.96839293,223.31,223.3,0.2]
[1759859664375,41.6437764,223.31,223.3,0.2]
[1759859665093,37.16569661,223.31,223.3,0.2]
[1759859665290,38.65509633,223.31,223.3,0.2]
[1759859665473,35.19623784,223.31,223.3,0.87]
[1759859665786,35.19623784,223.31,223.3,0.2]
[1759859665787,37.17325438,223.31,223.3,0.2]
[1759859666182,32.2,223.31,223.3,0.2]
[1759859666401,41.65336787,223.31,223.3,0.2]
[1759859666580,44.9842429,223.31,223.3,0.2]
[1759859666784,41.65336787,223.31,223.3,0.2]
[1759859667200,44.98530323,223.31,223.3,0.2]
[1759859667883,53.57336939,223.31,223.3,0.2]
[1759859668975,45.66530323,223.31,223.3,0.2]
[1759859669188,44.98530323,223.31,223.3,0.2]
[1759859669703,43.00828669,223.31,223.3,0.2]
[1759859669868,44.98530323,223.31,223.3,0.2]
[1759859670491,45.66530323,223.31,223.3,0.2]
[1759859670790,48.00311058,223.31,223.3,0.2]
[1759859670997,48.00177371,223.31,223.3,0.2]
[1759859671184,49.11435206,223.31,223.3,0.2]
[1759859671386,48.43435206,223.31,223.3,0.2]
[1759859672793,13.144121,223.31,223.3,0.2]
[1759859672991,48.37434199,223.31,223.3,0.2]
[1759859673888,48.37434199,223.31,223.3,0.87]
[1759859674786,48.37434199,223.31,223.3,0.2]
[1759859675295,46.03653464,223.31,223.3,0.87]
[1759859675689,38.1728375,223.31,223.3,0.87]
[1759859675890,41.26306856,223.31,223.3,0.87]
[1759859676117,41.26306856,223.31,223.3,0.2]
[1759859676480,60.38785462,223.31,223.3,0.2]
[1759859676675,10.87647521,223.3,223.29,0.2]
[1759859676879,21.06752575,223.3,223.29,0.2]
[1759859677587,25.54580609,223.3,223.29,0.2]
[1759859677785,3.09023106,223.29,223.28,0.1]
[1759859677989,60.04061313,223.29,223.28,0.1]
[1759859679583,4.47868147,223.28,223.27,0.2]
[1759859679782,11.5792946,223.28,223.27,0.2]
[1759859680005,10.87647521,223.27,223.21,0.1]
[1759859680183,13.96670627,223.25,223.21,0.1]
[1759859680388,17.29708834,223.25,223.21,0.1]
[1759859680693,17.97708834,223.25,223.21,0.1]
[1759859681114,17.29708834,223.25,223.21,0.1]
[1759859681493,17.97708834,223.25,223.21,0.1]
[1759859681693,22.45637165,223.25,223.21,0.1]
[1759859682409,7.80575314,223.25,223.21,0.1]
[1759859682725,10.8959842,223.25,223.24,0.77]
[1759859682905,43.0359842,223.25,223.24,0.77]
[1759859683724,43.0359842,223.25,223.24,0.1]
[1759859685921,56.24140529,223.25,223.24,0.1]
[1759859686310,53.15117423,223.25,223.24,0.1]
[1759859686618,56.24140529,223.25,223.24,0.1]
[1759859687115,56.23982356,223.25,223.24,0.1]
[1759859687691,59.23219411,223.25,223.24,0.1]
[1759859688419,56.14196305,223.25,223.24,0.1]
[1759859688613,59.23219411,223.25,223.24,0.1]
[1759859691404,59.23219411,223.25,223.24,0.77]
[1759859691609,22.6129108,223.25,223.24,0.77]
[1759859691797,54.7529108,223.25,223.24,0.77]
[1759859691998,59.23219411,223.25,223.24,0.77]
[1759859692617,59.23086646,223.25,223.24,0.77]
[1759859694812,56.1406354,223.25,223.24,0.77]
[1759859694997,59.23086646,223.25,223.24,0.77]
[1759859696027,56.1406354,223.25,223.24,0.77]
[1759859696214,59.23086646,223.25,223.24,0.77]
[1759859696612,59.23086646,223.25,223.24,0.1]
[1759859697099,55.90730601,223.25,223.24,0.78]
[1759859697304,59.23170345,223.25,223.24,0.78]
[1759859698026,59.23170345,223.25,223.24,0.1]
[1759859698908,59.23170345,223.25,223.24,0.78]
[1759859699731,59.23170345,223.25,223.24,0.1]
[1759859702230,59.23170345,223.25,223.24,0.78]
[1759859702736,59.23170345,223.25,223.24,0.1]
[1759859704535,80.70170345,223.25,223.24,0.1]
[1759859704749,70.77817866,223.25,223.24,0.1]
[1759859704917,20.8,223.22,223.21,0.1]
[1759859705114,62.34699905,223.22,223.21,0.1]
[1759859706934,66.82688436,223.22,223.21,0.1]
[1759859707315,69.16565753,223.22,223.21,0.1]
[1759859709944,69.83565753,223.22,223.21,0.1]
[1759859710130,69.16565753,223.22,223.21,0.1]
[1759859710437,69.83565753,223.22,223.21,0.1]
[1759859710825,84.12560187,223.22,223.19,0.2]
[1759859711025,6.18046212,223.2,223.19,0.2]
[1759859711226,44.63723011,223.2,223.19,0.2]
[1759859711440,45.30723011,223.2,223.19,0.2]
[1759859711942,20.8,223.18,223.17,0.1]
[1759859712146,62.34699905,223.18,223.17,0.1]
[1759859712348,67.49768728,223.18,223.17,0.1]
[1759859713332,67.49334291,223.18,223.17,0.1]
[1759859713734,10.87647521,223.17,223.09,0.68]
[1759859713936,6.18046212,223.1,223.07,0.1]
[1759859714151,6.18046212,223.08,223.07,0.1]
[1759859714336,46.12755635,223.08,223.07,0.1]
[1759859714655,43.03732529,223.08,223.07,0.1]
[1759859714954,43.03732529,223.08,223.07,0.78]
[1759859715628,3.32439744,223.08,223.07,0.78]
[1759859716030,2.60439744,223.09,223.07,5.26289774]
[1759859716230,132.9,223.16,223.08,0.68]
[1759859716231,32.14,223.1,223.08,0.68]
[1759859716451,32.14,223.1,223.09,4.48249585]
[1759859716653,0.67,223.1,223.07,0.1]
[1759859716854,20.8,223.09,223.07,0.1]
[1759859717078,32.14,223.08,223.07,0.1]
[1759859717238,3.09023106,223.08,223.07,0.1]
[1759859717440,20.8,223.09,223.07,0.1]
[1759859717644,3.09023106,223.08,223.07,0.78]
[1759859717847,20.8,223.09,223.07,0.1]
[1759859718149,32.14,223.08,223.07,0.1]
[1759859718561,35.23023106,223.08,223.07,0.1]
[1759859718866,3.09023106,223.08,223.07,0.1]
[1759859719054,35.23023106,223.08,223.07,0.78]
[1759859719461,4.48150029,223.14,223.07,0.78]
[1759859719655,3.09023106,223.1,223.07,0.78]
[1759859719855,32.14,223.09,223.07,0.78]
[1759859720254,35.23023106,223.09,223.08,0.68]
[1759859720445,32.14,223.09,223.08,0.68]
[1759859720767,4.48172863,223.13,223.08,0.68]
[1759859720950,3.09023106,223.1,223.09,0.68]
[1759859721269,35.23023106,223.1,223.09,0.68]
[1759859721764,32.14,223.1,223.09,0.68]
[1759859721968,35.23023106,223.1,223.09,0.68]
[1759859722143,20.8,223.12,223.09,0.68]
[1759859722346,3.09023106,223.11,223.09,0.68]
[1759859722548,32.14,223.1,223.09,0.68]
[1759859722752,20.8,223.15,223.09,5.16242682]
[1759859722960,3.09023106,223.13,223.1,0.68]
[1759859723260,32.14,223.12,223.1,0.68]
[1759859723463,32.14,223.12,223.11,0.68]
[1759859723867,35.23023106,223.12,223.11,0.68]
[1759859724265,21.47,223.19,223.11,0.68]
[1759859724462,3.09023106,223.13,223.11,0.68]
[1759859724662,32.14,223.14,223.11,0.68]
[1759859724868,3.09023106,223.13,223.12,0.68]
[1759859725849,3.09023106,223.13,223.07,0.1]
[1759859726051,3.09023106,223.1,223.09,0.68]
[1759859726464,35.23023106,223.1,223.07,0.1]
[1759859726645,3.09023106,223.08,223.07,0.1]
[1759859726847,3.09023106,223.08,223.07,0.79]
[1759859727255,52.94,223.09,223.07,0.79]
[1759859727468,3.09023106,223.08,223.07,0.79]
[1759859727974,3.09023106,223.08,223.07,0.1]
[1759859728178,3.31056104,223.08,223.07,0.1]
[1759859728380,6.4007921,223.08,223.07,0.1]
[1759859728961,6.4007921,223.08,223.07,0.79]
[1759859729164,3.31056104,223.08,223.07,0.79]
[1759859729367,6.4007921,223.08,223.07,0.79]
[1759859730479,6.4007921,223.08,223.07,0.1]
[1759859731071,3.31056104,223.08,223.07,0.1]
[1759859731376,5.29200595,223.08,223.07,0.1]
[1759859731561,3.31056104,223.08,223.07,0.1]
[1759859731757,3.31056104,223.08,223.07,0.79]
[1759859731959,32.14,223.09,223.07,5.27289774]
[1759859732158,34.12144491,223.09,223.08,0.69]
[1759859732384,37.43073044,223.09,223.08,0.69]
[1759859732557,35.44928553,223.09,223.08,0.69]
[1759859732766,37.43073044,223.09,223.08,0.69]
[1759859733282,37.43073044,223.09,223.07,0.1]
[1759859733577,1.98144491,223.08,223.07,0.1]
[1759859734083,6.0003096,223.08,223.07,0.1]
[1759859734465,5.2903096,223.08,223.07,0.1]
[1759859734866,5.2903096,223.08,223.07,0.79]
[1759859734867,35.44886469,223.08,223.07,0.79]
[1759859735168,37.4303096,223.08,223.07,0.1]
[1759859736181,41.91300639,223.08,223.07,0.1]
[1759859736660,37.4303096,223.08,223.07,0.1]
[1759859737882,35.44886469,223.08,223.07,0.79]
[1759859738091,3.30886469,223.08,223.07,5.27289774]
[1759859738462,2.33946266,223.16,223.07,16.4801421]
[1759859738657,35.45180919,223.15,223.08,0.69]
[1759859738971,5.2932541,223.14,223.08,0.69]
[1759859739182,3.31180919,223.13,223.08,0.69]
[1759859739493,3.31180919,223.12,223.09,15.68873548]
[1759859739693,34.12144491,223.17,223.1,0.68]
[1759859739868,3.31367812,223.16,223.1,0.68]
[1759859740262,32.14,223.2,223.1,0.68]
[1759859740263,3.31462211,223.15,223.1,0.68]
[1759859740490,1.98144491,223.16,223.1,0.68]
[1759859740695,3.31462285,223.15,223.1,0.68]
[1759859741382,32.14,223.2,223.11,15.68732911]
[1759859741584,1.98144491,223.17,223.12,0.68]
[1759859741770,3.31689517,223.16,223.12,0.68]
[1759859741975,0.69,223.22,223.12,0.68]
[1759859741976,1.98144491,223.19,223.12,0.68]
[1759859742182,3.31606936,223.18,223.12,0.68]
[1759859742577,1.98144491,223.17,223.12,0.68]
[1759859742791,3.31606936,223.16,223.13,0.68]
[1759859743094,3.31606936,223.16,223.14,0.68]
[1759859743289,1.98144491,223.18,223.14,0.68]
[1759859743490,3.31648809,223.17,223.15,4.48129061]
[1759859743893,3.31648809,223.17,223.15,5.16129061]
[1759859744091,3.31648809,223.16,223.15,5.16129061]
[1759859744286,1.98144491,223.19,223.15,5.16129061]
[1759859744488,3.31728944,223.18,223.15,5.16129061]
[1759859744680,3.31728944,223.17,223.15,5.16129061]
[1759859744880,3.31728944,223.17,223.15,4.48129061]
[1759859745188,5.29873435,223.17,223.15,4.48129061]
[1759859745500,5.29873435,223.16,223.13,4.48169228]
[1759859745687,0.69,223.17,223.13,4.48169228]
[1759859745895,1.98144491,223.15,223.13,4.48169228]
[1759859746496,1.98144491,223.16,223.13,4.48169228]
[1759859746700,3.31795327,223.15,223.13,4.48169228]
[1759859747403,3.31795327,223.14,223.13,5.16169228]
[1759859747575,2.98625161,223.2,223.13,5.16169228]
[1759859747576,3.31795327,223.15,223.13,5.16169228]
[1759859747771,1.98144491,223.17,223.13,5.16169228]
[1759859747999,1.98144491,223.14,223.11,4.48192464]
[1759859748481,1.98144491,223.12,223.1,4.48227326]
[1759859748680,3.31982928,223.11,223.1,5.16227326]
[1759859749392,2.9868285,223.16,223.1,16.36801059]
[1759859749600,22.78144491,223.19,223.11,11.55647521]
[1759859749897,3.32068576,223.18,223.12,0.68]
[1759859750307,3.32068576,223.17,223.12,0.68]
[1759859750601,1.98144491,223.2,223.12,0.68]
[1759859750790,3.3205095,223.19,223.12,0.68]
[1759859751401,5.30195441,223.19,223.13,15.68592299]
[1759859751694,1.98144491,223.16,223.13,4.48169228]
[1759859752277,1.98144491,223.17,223.13,4.48169228]
[1759859752476,3.32030566,223.16,223.13,4.48169228]
[1759859753703,3.32030566,223.16,223.12,4.48189315]
[1759859754024,3.32030566,223.16,223.13,0.68]
[1759859754299,1.98144491,223.18,223.13,0.68]
[1759859754501,0.69,223.19,223.14,0.68]
[1759859754502,3.31989311,223.17,223.14,0.68]
[1759859754678,15.68586494,223.25,223.15,0.68]
[1759859754879,1.98144491,223.21,223.15,0.68]
[1759859755075,3.32057532,223.2,223.15,0.68]
[1759859755299,1.98144491,223.22,223.15,0.68]
[1759859755498,3.32023755,223.21,223.15,0.68]
[1759859756079,3.32023755,223.21,223.16,4.4810898]
[1759859756283,2.9887008,223.24,223.17,0.68]
[1759859756483,5.3009306,223.23,223.17,0.68]
[1759859756684,3.31948569,223.22,223.17,0.68]
[1759859757088,3.31948569,223.21,223.17,0.68]
[1759859757307,1.98144491,223.23,223.17,0.69]
[1759859757482,3.31854782,223.22,223.17,0.69]
[1759859758295,3.31854782,223.22,223.18,4.48068823]
[1759859758699,1.98144491,223.19,223.12,7.80044097]
[1759859758907,1.98144491,223.15,223.12,7.80044097]
[1759859759086,0.69,223.18,223.12,5.17189315]
[1759859759289,1.98144491,223.16,223.12,5.17189315]
[1759859759608,2.98634904,223.21,223.13,0.69]
[1759859759609,24.47634904,223.21,223.13,0.69]
[1759859759797,3.31770702,223.2,223.13,0.69]
[1759859760188,2.67144491,223.21,223.13,0.69]
[1759859760407,1.98144491,223.19,223.14,4.48149144]
[1759859760614,1.98144491,223.15,223.1,0.69]
[1759859760916,2.67144491,223.15,223.1,0.69]
[1759859761714,2.67144491,223.15,223.11,4.48209403]
[1759859762298,1.98144491,223.14,223.11,4.48209403]
[1759859762903,1.98144491,223.13,223.11,4.48209403]
[1759859763215,2.67144491,223.12,223.08,4.48269679]
[1759859764212,1.98144491,223.12,223.08,4.48269679]
[1759859764420,0.69,223.17,223.09,0.69]
[1759859764585,1.98144491,223.15,223.09,0.69]
[1759859765209,2.67144491,223.17,223.09,0.69]
[1759859765408,1.98144491,223.18,223.09,0.69]
[1759859765709,21.49,223.2,223.1,42.97647521]
[1759859765710,2.67144491,223.2,223.1,42.97647521]
[1759859765914,1.98144491,223.18,223.12,15.68662602]
[1759859766120,3.31787516,223.17,223.12,15.68662602]
[1759859766303,1.98144491,223.18,223.12,16.37662602]
[1759859766488,3.31826181,223.17,223.12,16.37662602]
[1759859766817,3.31826181,223.17,223.13,0.69]
[1759859767308,3.31826181,223.17,223.14,4.48149144]
[1759859767815,1.98144491,223.15,223.07,4.10787516]
[1759859767997,1.98144491,223.13,223.07,0.79]
[1759859768197,1.98144491,223.12,223.07,0.79]
[1759859768609,2.67144491,223.12,223.07,0.79]
[1759859769095,2.67144491,223.12,223.08,4.48269679]
[1759859769800,0.69,223.12,223.08,4.48269679]
[1759859770316,0.69,223.14,223.08,16.37943876]
[1759859770500,0.69,223.18,223.1,10.87647521]
[1759859770816,3.31853233,223.17,223.11,32.79]
[1759859771528,3.31853233,223.17,223.12,0.69]
[1759859771709,1.98144491,223.19,223.13,0.69]
[1759859772028,3.31885787,223.18,223.13,0.69]
[1759859772329,1.98144491,223.2,223.15,4.48129061]
[1759859772621,3.31999219,223.19,223.15,5.17129061]
[1759859773212,3.31999219,223.19,223.16,0.69]
[1759859773512,0.69,223.23,223.17,0.69]
[1759859773723,3.32143951,223.22,223.17,0.69]
[1759859774135,0.69,223.21,223.15,15.68451713]
[1759859774302,3.32143951,223.2,223.15,15.68451713]
[1759859774630,3.32143951,223.2,223.16,0.69]
[1759859774816,1.98144491,223.23,223.17,0.69]
[1759859775012,3.32164694,223.22,223.17,0.69]
[1759859775214,4.01164694,223.22,223.17,0.69]
[1759859775395,3.32164694,223.21,223.17,0.69]
[1759859775804,3.32164694,223.21,223.15,15.68451713]
[1759859775805,4.01164694,223.21,223.15,15.68451713]
[1759859775997,0.69,223.21,223.15,15.68451713]
[1759859776408,23.47144491,223.25,223.16,0.69]
[1759859776614,3.32301089,223.24,223.17,10.87647521]
[1759859776797,22.78144491,223.29,223.19,10.87647521]
[1759859776999,22.78144491,223.29,223.2,32.79]
[1759859777000,29.09614168,223.28,223.2,32.79]
[1759859777206,5.99513224,223.27,223.2,32.79]
[1759859777416,3.32368733,223.26,223.2,32.79]
[1759859777811,5.30513224,223.26,223.2,0.69]
[1759859778017,3.32368733,223.25,223.2,32.79]
[1759859778211,4.01368733,223.25,223.2,0.69]
[1759859778402,0.69,223.25,223.2,0.69]
[1759859778604,0.69,223.25,223.21,4.48008601]
[1759859779212,0.69,223.24,223.21,4.48008601]
[1759859779529,2.67144491,223.26,223.2,4.48028673]
[1759859779730,3.32283995,223.25,223.2,4.48028673]
[1759859780030,3.32283995,223.25,223.2,15.68100357]
[1759859780202,3.32283995,223.25,223.2,16.37100357]
[1759859780402,0.69,223.26,223.2,16.37100357]
[1759859780821,3.32297241,223.25,223.2,16.37100357]
[1759859781223,0.69,223.26,223.2,15.68100357]
[1759859781521,1.98144491,223.28,223.22,15.67959859]
[1759859781724,13.93604029,223.29,223.23,0.69]
[1759859781725,3.32357645,223.27,223.23,0.69]
[1759859781917,2.67144491,223.29,223.24,0.69]
[1759859782224,3.3238791,223.28,223.24,0.69]
[1759859782622,3.3238791,223.28,223.22,4.47988531]
[1759859782832,2.67144491,223.27,223.22,4.47988531]
[1759859783016,0.69,223.26,223.22,4.47988531]
[1759859783332,1.98144491,223.27,223.22,4.47988531]
[1759859783512,0.69,223.25,223.22,4.47988531]
[1759859783921,1.98144491,223.26,223.22,4.47988531]
[1759859784219,2.67144491,223.26,223.22,4.47988531]
[1759859784607,0.69,223.26,223.22,4.47988531]
[1759859785131,1.98144491,223.28,223.22,5.16988531]
[1759859785312,3.3235945,223.27,223.22,16.36959859]
[1759859785626,3.3235945,223.27,223.23,0.69]
[1759859786831,3.3235945,223.27,223.24,4.47948396]
[1759859787431,2.67144491,223.29,223.24,4.47948396]
[1759859787740,13.22664209,223.3,223.24,4.47948396]
[1759859787741,6.01364242,223.28,223.24,4.47948396]
[1759859787920,2.69144491,223.28,223.24,4.47948396]
[1759859788609,0.71,223.31,223.25,0.72]
[1759859788818,3.31983029,223.3,223.26,4.47908268]
[1759859789120,5.3012752,223.3,223.26,4.47908268]
[1759859789430,0.71,223.29,223.26,4.47908268]
[1759859790012,1.98144491,223.3,223.26,4.47908268]
[1759859790441,0.71,223.29,223.23,4.47968463]
[1759859790616,2.69144491,223.28,223.23,4.47968463]
[1759859790931,0.71,223.27,223.23,5.19968463]
[1759859791115,1.98144491,223.28,223.23,5.19968463]
[1759859791315,0.71,223.29,223.24,0.72]
[1759859791530,1.98144491,223.3,223.24,0.72]
[1759859791829,0.71,223.28,223.24,0.72]
[1759859792017,1.98144491,223.29,223.24,0.72]
[1759859792219,2.69144491,223.28,223.23,4.47968463]
[1759859792422,1.98144491,223.24,223.17,0.72]
[1759859792612,20.8,223.26,223.17,11.20190111]
[1759859792819,1.98144491,223.2,223.17,11.20190111]
[1759859793019,3.09162392,223.2,223.17,11.92190111]
[1759859793237,3.09162392,223.21,223.17,0.72]
[1759859793532,3.09162392,223.2,223.15,5.20127807]
[1759859793712,3.80162392,223.19,223.15,4.48127807]
[1759859793914,3.09162392,223.18,223.15,4.48127807]
[1759859794329,3.80162392,223.19,223.15,5.20127807]
[1759859794931,3.80162392,223.19,223.15,4.48127807]
[1759859795628,3.09162392,223.16,223.14,4.48146106]
[1759859795836,3.80162392,223.16,223.14,4.48146106]
[1759859796038,3.09162392,223.16,223.14,4.48146106]
[1759859796243,0.71,223.18,223.14,4.48146106]
[1759859796420,3.09162392,223.17,223.14,5.20146106]
[1759859796749,3.09162392,223.18,223.14,5.20146106]
[1759859797244,3.09162392,223.17,223.14,4.48146106]
[1759859797817,0.71,223.18,223.14,4.48146106]
[1759859798023,3.09162392,223.17,223.14,4.48146106]
[1759859798242,3.80162392,223.17,223.14,4.48146106]
[1759859798427,3.80162392,223.16,223.12,4.48169998]
[1759859798625,3.80162392,223.16,223.12,36.54169998]
[1759859798828,3.80162392,223.16,223.11,32.06]
[1759859799024,3.09162392,223.16,223.11,32.06]
[1759859799219,3.09162392,223.16,223.11,32.72]
[1759859799438,3.09162392,223.16,223.11,32.06]
[1759859799647,3.09162392,223.16,223.12,0.66]
[1759859799943,3.09162392,223.16,223.13,4.48169228]
[1759859801043,3.09162392,223.16,223.11,32.06]
[1759859801044,3.09162392,223.14,223.11,4.48195872]
[1759859801343,3.09162392,223.13,223.11,4.48195872]
[1759859801543,3.09162392,223.14,223.11,4.48195872]
[1759859801733,3.80162392,223.15,223.11,4.48195872]
[1759859802738,21.51,223.17,223.11,5.14195872]
[1759859802942,3.09162392,223.15,223.11,5.14195872]
[1759859803538,3.09162392,223.16,223.11,4.48195872]
[1759859803722,3.09162392,223.16,223.11,5.14195872]
[1759859803921,3.80162392,223.16,223.11,5.14195872]
[1759859804122,3.80162392,223.15,223.11,4.48195872]
[1759859804949,3.09162392,223.15,223.11,5.14195872]
[1759859805354,3.09162392,223.16,223.12,0.66]
[1759859805950,3.09162392,223.16,223.11,36.54195872]
[1759859806154,25.28078721,223.18,223.11,5.14195872]
[1759859806155,3.80162392,223.15,223.11,5.14195872]
[1759859807331,3.09162392,223.16,223.12,0.66]
[1759859807533,0.71,223.18,223.11,15.6871938]
[1759859807746,0.71,223.17,223.11,15.6871938]
[1759859807948,0.71,223.17,223.12,32.06]
[1759859807949,3.80162392,223.17,223.12,32.06]
[1759859808133,0.71,223.16,223.12,32.06]
[1759859808334,3.09162392,223.17,223.12,32.72]
[1759859808529,0.71,223.17,223.13,0.66]
[1759859808742,3.80162392,223.17,223.12,32.06]
[1759859808950,3.09162392,223.14,223.1,32.06]
[1759859809256,3.09162392,223.14,223.11,4.48209403]
[1759859809931,3.80162392,223.14,223.11,4.48209403]
[1759859810344,3.09162392,223.13,223.1,0.66]
[1759859810546,3.09162392,223.13,223.08,36.54250359]
[1759859810547,3.09162392,223.12,223.08,36.54250359]
[1759859810763,3.80162392,223.12,223.08,36.54250359]
[1759859811742,3.80162392,223.12,223.08,37.20250359]
[1759859812057,0.71,223.14,223.08,37.20250359]
[1759859812350,3.09162392,223.13,223.08,37.20250359]
[1759859812552,3.09162392,223.13,223.09,0.66]
[1759859813150,3.09162392,223.13,223.08,36.54250359]
[1759859813561,3.80162392,223.12,223.08,37.20250359]
[1759859814340,3.09162392,223.12,223.08,37.20250359]
[1759859814745,0.71,223.12,223.08,37.20250359]
[1759859814946,0.71,223.12,223.08,36.54250359]
[1759859815151,3.80162392,223.12,223.08,37.20250359]
[1759859815859,3.09162392,223.09,223.07,0.1]
[1759859816451,3.09162392,223.08,223.07,0.1]
[1759859816636,3.09162392,223.09,223.07,0.1]
[1759859816836,3.09162392,223.09,223.07,4.58283015]
[1759859817057,3.09162392,223.1,223.07,4.58283015]
[1759859817258,0.71,223.11,223.07,4.58283015]
[1759859817455,3.09162392,223.1,223.07,4.58283015]
[1759859820166,3.09162392,223.1,223.07,5.26283015]
[1759859820457,0.5,223.14,223.09,10.87647521]
[1759859820657,0.5,223.14,223.1,32.74]
[1759859820843,3.80162392,223.2,223.1,32.74]
[1759859821170,0.71,223.23,223.12,10.87647521]
[1759859821373,3.80162392,223.23,223.13,0.68]
[1759859821538,3.80162392,223.23,223.14,32.06]
[1759859821739,3.09162392,223.21,223.15,0.68]
[1759859821981,3.09162392,223.18,223.14,13.45321643]
[1759859822195,0.71,223.17,223.14,32.06]
[1759859822467,15.67821983,223.24,223.11,21.48]
[1759859822468,3.09162392,223.16,223.13,4.4814945]
[1759859822649,3.09162392,223.16,223.12,4.48187162]
[1759859822850,3.80162392,223.16,223.12,4.48187162]
[1759859823054,3.09162392,223.13,223.08,32.74]
[1759859823246,0.71,223.15,223.09,4.48032955]
[1759859823455,3.09162392,223.13,223.09,4.48032955]
[1759859823660,3.09162392,223.12,223.09,0.68]
[1759859823863,0.5,223.13,223.09,0.68]
[1759859824082,3.09162392,223.12,223.09,5.16249585]
[1759859825173,3.09162392,223.11,223.09,4.48249585]
[1759859826081,3.09162392,223.1,223.07,32.16]
[1759859826395,3.09162392,223.08,223.07,0.1]
[1759859826770,3.80162392,223.08,223.07,0.1]
[1759859828270,4.4825022,223.09,223.07,0.1]
[1759859828472,3.80162392,223.08,223.07,0.1]
[1759859829094,4.30162392,223.08,223.07,0.1]
[1759859829472,1.21,223.08,223.07,0.1]
[1759859829696,10.70076553,223.08,223.07,0.1]
[1759859830187,15.18346232,223.08,223.07,0.1]
[1759859830488,14.68346232,223.08,223.07,0.1]
[1759859831209,8.50021448,223.08,223.07,0.1]
[1759859831387,3.30751769,223.08,223.07,0.1]
[1759859831586,3.09162392,223.09,223.07,0.78]
[1759859831784,3.09162392,223.11,223.07,0.78]
[1759859832096,3.09162392,223.12,223.08,5.1625958]
[1759859832295,3.09162392,223.13,223.09,0.68]
[1759859832471,6.40017951,223.12,223.09,0.68]
[1759859832668,3.09162392,223.12,223.09,0.68]
[1759859833468,3.09162392,223.1,223.07,0.1]
[1759859833672,3.09162392,223.08,223.07,0.1]
[1759859834195,6.399702,223.08,223.07,0.1]